bitfinex-derivatives/quotes_SOLF0:USTF0_20250311
["timestamp","ask_amount","ask_price","bid_price","bid_amount"]
[1741654669580,0.0607799,113.93,113.83,84.40564766]
[1741654669788,75.56524766,113.93,113.9,0.05774433]
[1741654669985,0.05765481,113.89,113.83,84.40564766]
[1741654670285,75.56524766,113.96,113.9,0.06409998]
[1741654670483,75.56524766,113.96,113.83,84.40564766]
[1741654670883,0.06590836,113.94,113.92,0.06090539]
[1741654671183,170.7755248,113.97,113.83,84.40564766]
[1741654671484,75.62074262,113.94,113.92,0.05736411]
[1741654671681,75.56524766,113.94,113.83,84.40564766]
[1741654671889,75.56524766,113.91,113.83,4.3979]
[1741654672886,0.06665899,113.88,113.86,0.06027629]
[1741654673083,30.42257494,113.95,113.86,75.62552395]
[1741654673280,30.42257494,113.95,113.86,75.56524766]
[1741654673686,30.42257494,113.95,113.87,4.4597]
[1741654674183,10.08977494,113.95,113.92,75.56524766]
[1741654674386,35.86198461,113.97,113.92,75.56524766]
[1741654674685,15.54008461,113.97,113.92,75.56524766]
[1741654674878,236.73240898,114.01,113.93,0.06409969]
[1741654675085,15.54008461,114.03,113.93,0.06409969]
[1741654675385,15.54008461,114.03,113.92,75.56524766]
[1741654675982,0.06359317,113.99,113.96,0.0600344]
[1741654676384,0.06359317,113.99,113.92,75.56524766]
[1741654676687,75.56524766,114.02,113.96,0.06171136]
[1741654676982,0.05966995,113.97,113.96,0.06171136]
[1741654677188,0.05966995,113.97,113.92,75.56524766]
[1741654677387,19.79108461,114.03,113.98,0.05777897]
[1741654677882,0.06564876,114.02,113.99,0.0636052]
[1741654678388,289.56,114.1,113.98,75.56524766]
[1741654678587,0.06121964,114.02,113.99,0.06152957]
[1741654678987,75.56524766,114.09,113.98,75.56524766]
[1741654679289,0.0559976,114.02,113.99,0.05941185]
[1741654679489,0.0559976,114.02,113.98,75.56524766]
[1741654679693,75.56524766,114.09,113.95,365.12524766]
[1741654679991,0.05749621,114.01,113.99,0.05640149]
[1741654680393,88.35654766,114.12,113.99,2.64]
[1741654680590,95.21027714,114.13,114.03,75.56524766]
[1741654680990,0.05800741,114.09,114.05,75.56524766]
[1741654681192,95.21027714,114.13,114.07,75.56524766]
[1741654681395,95.21027714,114.13,114.07,0.05586333]
[1741654681595,79.73884766,114.17,114.07,0.05586333]
[1741654681791,75.56524766,114.13,114.07,0.05586333]
[1741654681992,75.56524766,114.11,114.01,75.56524766]
[1741654682294,79.73884766,114.17,114.05,75.56524766]
[1741654682490,4.1736,114.17,114.07,75.56524766]
[1741654682694,99.49387714,114.18,114.07,75.56524766]
[1741654683093,95.21027714,114.18,114.11,75.56524766]
[1741654683289,95.21027714,114.18,114.13,75.56524766]
[1741654683495,141.70876699,114.19,114.15,75.56524766]
[1741654683695,0.06671096,114.17,114.15,75.56524766]
[1741654683896,141.70876699,114.19,114.16,0.059575]
[1741654684600,75.56524766,114.21,114.16,0.059575]
[1741654684992,75.56524766,114.19,114.07,75.56524766]
[1741654685195,4.2373,114.18,114.09,75.56524766]
[1741654685402,75.56524766,114.23,114.13,75.56524766]
[1741654685604,4.2373,114.26,114.1,75.56524766]
[1741654685800,4.2373,114.26,114.2,75.56524766]
[1741654686001,141.70876699,114.27,114.2,75.56524766]
[1741654686198,141.70876699,114.27,114.22,0.0637931]
[1741654686397,0.05880328,114.24,114.22,0.0637931]
[1741654686906,0.05880328,114.24,114.22,75.62904076]
[1741654687105,141.70876699,114.27,114.22,75.62904076]
[1741654687302,141.70876699,114.27,114.24,75.56524766]
[1741654687498,236.73240898,114.28,114.26,75.56524766]
[1741654687698,293.20857384,114.3,114.26,75.56524766]
[1741654687899,225.09049358,114.3,114.29,75.56524766]
[1741654688196,225.09049358,114.3,114.25,75.56524766]
[1741654688394,0.05683722,114.31,114.28,0.06538273]
[1741654688597,75.56524766,114.34,114.28,0.06538273]
[1741654688792,75.56524766,114.32,114.21,75.56524766]
[1741654688996,0.06271364,114.31,114.3,0.0553619]
[1741654689305,75.56524766,114.32,114.21,75.56524766]
[1741654689506,75.62317881,114.32,114.21,75.56524766]
[1741654689700,75.56524766,114.28,114.18,95.20724366]
[1741654690000,289.16,114.45,114.26,75.56524766]
[1741654690195,84.12164766,114.4,114.28,75.56524766]
[1741654690997,0.05846764,114.35,114.33,0.0637185]
[1741654691404,75.56524766,114.38,114.28,75.56524766]
[1741654691616,0.0642187,114.35,114.33,0.06612297]
[1741654691906,0.00152016,114.35,114.33,0.06612297]
[1741654692114,75.56524766,114.42,114.32,75.56524766]
[1741654692408,75.56524766,114.44,114.32,364.60524766]
[1741654692709,75.56524766,114.44,114.24,479.42015209]
[1741654692710,75.56524766,114.38,114.28,170.98539975]
[1741654692906,75.56524766,114.35,114.28,95.42015209]
[1741654693300,75.56524766,114.33,114.3,0.0601981]
[1741654693709,0.05530982,114.33,114.28,95.42015209]
[1741654693909,0.05530982,114.33,114.22,170.98539975]
[1741654694104,75.56524766,114.32,114.3,0.06459371]
[1741654694309,75.56524766,114.32,114.22,95.42015209]
[1741654694612,75.56524766,114.3,114.22,95.42015209]
[1741654694909,75.56524766,114.32,114.26,0.05639423]
[1741654695109,75.56524766,114.34,114.26,0.05639423]
[1741654695404,12.8444,114.38,114.26,78.18524766]
[1741654695405,2.852e-05,114.27,114.26,78.18524766]
[1741654695608,88.40964766,114.38,114.26,75.56524766]
[1741654695808,8.5018,114.38,114.3,75.56524766]
[1741654696001,79.93864766,114.42,114.3,75.56524766]
[1741654696604,79.93864766,114.42,114.35,0.06441396]
[1741654696810,0.06723748,114.37,114.35,0.06441396]
[1741654697007,4.3734,114.42,114.32,75.56524766]
[1741654697207,75.56524766,114.46,114.34,75.56524766]
[1741654697513,0.06494192,114.37,114.36,75.56524766]
[1741654697705,4.3896,114.47,114.32,75.56524766]
[1741654697706,75.56524766,114.44,114.32,75.56524766]
[1741654697911,75.56524766,114.46,114.34,75.56524766]
[1741654698106,0.06453792,114.38,114.36,75.56524766]
[1741654698405,75.56524766,114.71,114.37,441.4903131]
[1741654698606,8.6606,114.69,114.6,75.56524766]
[1741654698811,75.56524766,114.68,114.55,75.56524766]
[1741654699315,1.74352715,114.71,114.63,75.56524766]
[1741654699503,76.55038767,114.71,114.6,74.80686052]
[1741654699904,0.05907206,114.67,114.57,74.80686052]
[1741654700109,0.05907206,114.67,114.64,0.06136205]
[1741654700309,74.80686052,114.68,114.57,74.80686052]
[1741654700713,0.06203013,114.67,114.64,0.05939203]
[1741654700913,76.55038767,114.71,114.64,0.05939203]
[1741654701108,76.55038767,114.71,114.6,74.80686052]
[1741654701413,0.05900048,114.67,114.64,0.0645025]
[1741654701915,1.74352715,114.71,114.66,74.80686052]
[1741654702210,0.05675212,114.67,114.66,74.80686052]
[1741654702403,1.74352715,114.71,114.66,74.80686052]
[1741654702605,12.7895,114.79,114.69,74.80686052]
[1741654702809,12.7895,114.79,114.67,74.80686052]
[1741654703005,0.05960777,114.75,114.67,74.80686052]
[1741654703313,0.05960777,114.75,114.72,0.06101217]
[1741654703513,74.80686052,114.77,114.56,288.3]
[1741654703709,74.80686052,114.74,114.61,74.80686052]
[1741654703909,0.06196441,114.75,114.64,74.80686052]
[1741654704204,74.80686052,114.74,114.61,74.80686052]
[1741654704614,74.80686052,114.76,114.64,74.80686052]
[1741654704915,0.0582366,114.69,114.66,0.06095039]
[1741654705116,0.0582366,114.69,114.63,74.80686052]
[1741654705410,12.7895,114.79,114.66,74.86920583]
[1741654705611,0.06123108,114.67,114.66,362.98920583]
[1741654705808,8.7254,114.79,114.66,365.54686052]
[1741654706009,8.7254,114.79,114.66,362.92686052]
[1741654706913,8.7254,114.79,114.66,288.12]
[1741654707113,362.92686052,115.0,114.71,0.05975958]
[1741654707314,8.7826,114.87,114.76,74.80686052]
[1741654707511,74.80686052,114.86,114.73,74.80686052]
[1741654707821,74.80686052,114.8,114.69,74.80686052]
[1741654708316,0.06031312,114.76,114.69,74.80686052]
[1741654708714,74.80686052,114.8,114.69,74.80686052]
[1741654708917,74.80686052,114.83,114.69,74.80686052]
[1741654709410,74.80686052,114.8,114.75,0.05566516]
[1741654709713,74.86841264,114.77,114.66,74.80686052]
[1741654709916,74.80686052,114.8,114.66,74.80686052]
[1741654710219,362.74686052,114.83,114.69,74.80686052]
[1741654710414,4.432,114.86,114.69,74.80686052]
[1741654710613,74.80686052,114.84,114.72,74.80686052]
[1741654710811,0.06388974,114.79,114.76,0.05548954]
[1741654711213,0.06388974,114.79,114.69,74.80686052]
[1741654711412,0.06388974,114.79,114.72,74.80686052]
[1741654711616,79.23886052,114.86,114.76,0.0643978]
[1741654712111,79.23886052,114.86,114.76,2.62]
[1741654712316,79.23886052,114.86,114.72,362.62686052]
[1741654712918,74.80686052,114.83,114.72,362.62686052]
[1741654713419,74.80686052,114.77,114.66,362.62686052]
[1741654714121,74.80686052,114.77,114.66,287.82]
[1741654714522,74.80686052,114.74,114.6,74.80686052]
[1741654714723,0.05552828,114.73,114.6,74.80686052]
[1741654714909,74.80686052,114.71,114.6,74.80686052]
[1741654715309,4.3615,114.7,114.6,74.80686052]
[1741654716020,0.0639483,114.66,114.64,0.05708794]
[1741654716920,4.2181,114.76,114.64,77.48394846]
[1741654717121,4.2181,114.76,114.66,74.80686052]
[1741654717422,79.02496052,114.76,114.64,74.80686052]
[1741654717725,74.80686052,114.74,114.62,74.80686052]
[1741654718119,79.02496052,114.76,114.64,74.80686052]
[1741654718315,4.2181,114.76,114.67,0.06042774]
[1741654718623,79.02496052,114.76,114.67,0.06042774]
[1741654718811,4.2181,114.76,114.66,74.80686052]
[1741654719416,79.02496052,114.76,114.64,74.80686052]
[1741654719621,0.059153,114.72,114.7,0.06191603]
[1741654721625,0.059153,114.72,114.62,74.80686052]
[1741654721626,74.86601352,114.72,114.62,74.80686052]
[1741654721818,0.059153,114.72,114.62,74.80686052]
[1741654722015,74.80686052,114.72,114.6,74.80686052]
[1741654722224,74.80686052,114.7,114.54,191.0]
[1741654722525,4.2934,114.69,114.58,74.80686052]
[1741654722727,0.06387998,114.63,114.61,0.06705026]
[1741654723024,194.0,114.96,114.61,0.06705026]
[1741654723322,129.12177082,115.26,114.95,149.61372104]
[1741654723526,1.73535791,115.25,115.11,74.80686052]
[1741654723830,287.78,115.24,115.14,74.80686052]
[1741654724027,129.12177082,115.19,115.14,74.80686052]
[1741654724429,129.12177082,115.19,115.18,0.06083687]
[1741654724720,129.12177082,115.19,115.14,74.80686052]
[1741654724930,129.12177082,115.19,115.17,0.06102157]
[1741654725221,131.72177082,115.19,115.11,74.80686052]
[1741654725430,129.12177082,115.19,115.11,74.80686052]
[1741654726219,129.12177082,115.19,115.0,267.80686052]
[1741654726527,0.06156117,115.16,115.1,74.80686052]
[1741654726729,287.42,115.16,115.07,74.80686052]
[1741654727421,287.42,115.16,115.0,74.80686052]
[1741654727728,0.05685185,115.13,115.1,0.05961585]
[1741654727922,287.42,115.16,115.08,74.80686052]
[1741654728228,0.06125413,115.13,115.1,0.0579051]
[1741654728422,8.5607,115.2,115.11,74.80686052]
[1741654728628,8.5607,115.2,115.08,74.80686052]
[1741654729028,82.05145958,115.2,115.07,73.49075958]
[1741654729327,1.73535791,115.25,115.13,73.49075958]
[1741654729520,1.73535791,115.25,115.16,73.49075958]
[1741654729726,4.2611,115.24,115.13,73.49075958]
[1741654730028,0.0666553,115.22,115.13,73.49075958]
[1741654730223,73.43429235,115.27,115.17,0.06563583]
[1741654730618,0.0615911,115.19,115.1,73.43429235]
[1741654730924,287.22,115.23,115.1,73.43429235]
[1741654731124,0.06575071,115.16,115.1,73.43429235]
[1741654732226,0.06575071,115.16,115.12,0.06293998]
[1741654732831,0.06575071,115.16,115.13,73.43429235]
[1741654733132,0.06575071,115.16,115.12,0.06293998]
[1741654733527,4.06632097,115.2,115.12,0.06293998]
[1741654733931,4.06632097,115.2,115.1,73.43429235]
[1741654734134,4.06632097,115.2,115.07,73.43429235]
[1741654734333,4.4193,115.19,115.07,73.43429235]
[1741654734726,4.4193,115.19,115.1,73.43429235]
[1741654734933,0.05761326,115.14,115.12,0.05618905]
[1741654735230,0.05761326,115.14,115.07,73.43429235]
[1741654735434,287.02,115.15,115.1,73.43429235]
[1741654735635,287.02,115.15,115.07,73.43429235]
[1741654736133,287.02,115.15,115.05,73.43429235]
[1741654736530,0.05582579,115.12,115.1,0.06291993]
[1741654736736,0.05582579,115.12,115.05,73.43429235]
[1741654737135,287.02,115.15,115.05,73.43429235]
[1741654737833,287.02,115.15,115.07,73.43429235]
[1741654738029,287.02,115.15,115.09,0.05836285]
[1741654738030,0.06438711,115.11,115.09,0.05836285]
[1741654738235,73.43429235,115.1,114.96,75.17402791]
[1741654738433,73.43429235,114.97,114.75,73.43429235]
[1741654738631,73.43429235,115.0,114.78,73.43429235]
[1741654738828,73.43429235,114.94,114.81,312.37187494]
[1741654739227,73.43429235,114.91,114.81,238.93758259]
[1741654739435,0.06058751,114.9,114.87,0.06033764]
[1741654739733,73.43429235,114.9,114.81,238.93758259]
[1741654740137,73.49932798,114.9,114.87,0.05899311]
[1741654740333,73.43429235,114.9,114.87,0.05899311]
[1741654740734,73.49214776,114.9,114.85,92.08118054]
[1741654741134,0.05785541,114.9,114.85,92.08118054]
[1741654741335,73.49214776,114.9,114.85,92.08118054]
[1741654741738,73.43429235,114.87,114.84,135.67703937]
[1741654741942,73.43429235,114.87,114.86,0.06190719]
[1741654742533,76.05429235,114.87,114.86,0.06190719]
[1741654742740,0.06514981,114.88,114.76,73.43429235]
[1741654742935,0.06514981,114.88,114.79,73.43429235]
[1741654743138,73.43429235,114.92,114.79,73.43429235]
[1741654743334,73.43429235,114.89,114.79,73.43429235]
[1741654743531,287.02,114.95,114.79,73.43429235]
[1741654743738,287.02,114.95,114.86,0.06113593]
[1741654743739,73.43429235,114.91,114.86,0.06113593]
[1741654743935,73.43429235,114.93,114.86,0.06113593]
[1741654744136,360.45429235,114.95,114.86,0.06113593]
[1741654744438,73.43429235,114.88,114.86,0.06113593]
[1741654744635,73.43429235,114.88,114.74,73.43429235]
[1741654744840,73.43429235,114.85,114.74,73.43429235]
[1741654745538,73.43429235,114.88,114.74,73.43429235]
[1741654746036,0.0596236,114.82,114.8,0.05503975]
[1741654746533,73.43429235,114.82,114.73,4.4567]
[1741654746738,73.49555459,114.82,114.8,0.06601953]
[1741654746931,73.43429235,114.82,114.73,4.4567]
[1741654747138,0.06100846,114.82,114.8,0.05885071]
[1741654747529,73.43429235,114.84,114.73,4.4567]
[1741654747840,0.05588132,114.82,114.8,0.06493126]
[1741654748040,291.4565,114.87,114.73,4.4567]
[1741654748236,0.05829833,114.82,114.8,0.05973073]
[1741654748739,0.05645974,114.82,114.8,0.06598089]
[1741654749134,73.43429235,114.81,114.8,0.06598089]
[1741654749340,73.43429235,114.81,114.8,8.089e-05]
[1741654749542,76.05429235,114.81,114.73,4.4567]
[1741654749746,73.43429235,114.79,114.73,4.4567]
[1741654750045,73.43429235,114.81,114.73,4.4567]
[1741654750846,0.05527688,114.78,114.76,0.0650212]
[1741654751542,73.43429235,114.77,114.76,0.0650212]
[1741654751845,73.43429235,114.77,114.61,191.0]
[1741654752140,73.43429235,114.71,114.61,195.2225]
[1741654752446,73.43429235,114.71,114.61,4.2225]
[1741654752845,73.43429235,114.71,114.65,0.05590678]
[1741654752846,0.05978151,114.67,114.65,0.05590678]
[1741654753839,73.43429235,114.73,114.65,0.05590678]
[1741654754041,73.43429235,114.75,114.65,0.05590678]
[1741654754347,73.43429235,114.73,114.62,73.43429235]
[1741654754659,73.43429235,114.73,114.61,4.2225]
[1741654754941,73.43429235,114.75,114.62,73.43429235]
[1741654755148,73.43429235,114.75,114.66,0.05957813]
[1741654755444,360.75429235,114.79,114.66,73.43429235]
[1741654755948,360.75429235,114.79,114.68,73.43429235]
[1741654756341,0.05818688,114.75,114.72,0.06234336]
[1741654756646,73.43429235,114.78,114.67,4.33]
[1741654756841,0.06543736,114.75,114.72,0.05902268]
[1741654758043,360.93429235,114.84,114.72,76.11331503]
[1741654758240,360.93429235,114.84,114.72,73.49331503]
[1741654758445,360.93429235,114.84,114.72,73.43429235]
[1741654758842,360.93429235,114.84,114.7,73.43429235]
[1741654759149,73.43429235,114.8,114.69,195.1396]
[1741654759342,0.05739588,114.78,114.76,0.06327878]
[1741654759646,73.43429235,114.78,114.69,4.1396]
[1741654759848,73.43429235,114.76,114.64,73.43429235]
[1741654760240,73.43429235,114.78,114.66,73.43429235]
[1741654760842,0.06497026,114.73,114.71,0.0551242]
[1741654761346,73.43429235,114.76,114.64,73.43429235]
[1741654761849,0.05699812,114.71,114.69,0.05794972]
[1741654762041,73.43429235,114.79,114.69,0.05794972]
[1741654762347,73.43429235,114.79,114.66,73.43429235]
[1741654762543,73.43429235,114.77,114.64,73.43429235]
[1741654763446,0.06531249,114.72,114.69,0.06485781]
[1741654763948,73.43429235,114.83,114.7,73.43429235]
[1741654764241,73.43429235,114.87,114.77,73.43429235]
[1741654764448,85.98669235,114.89,114.77,73.43429235]
[1741654764649,85.98669235,114.89,114.79,73.43429235]
[1741654765140,0.06529285,114.85,114.83,0.0616064]
[1741654765336,73.4995852,114.85,114.74,73.43429235]
[1741654765539,73.43429235,114.83,114.72,73.43429235]
[1741654766043,12.5524,114.89,114.74,73.43429235]
[1741654766242,73.43429235,114.86,114.74,73.43429235]
[1741654766443,12.5524,114.89,114.78,73.43429235]
[1741654766642,0.06191914,114.83,114.8,0.06167122]
[1741654766846,0.06191914,114.83,114.76,73.43429235]
[1741654767041,12.5524,114.89,114.78,73.43429235]
[1741654767247,73.43429235,114.93,114.82,73.43429235]
[1741654767449,73.43429235,114.95,114.84,73.43429235]
[1741654767842,287.5,114.96,114.86,73.48981915]
[1741654768050,287.5,114.96,114.86,73.43429235]
[1741654768549,73.43429235,115.01,114.9,73.43429235]
[1741654768750,73.43429235,114.99,114.88,73.43429235]
[1741654768938,0.06567623,114.92,114.9,0.06304576]
[1741654769351,73.43429235,114.97,114.86,73.43429235]
[1741654769552,0.06525101,114.92,114.9,0.0568656]
[1741654769748,73.43429235,115.01,114.9,73.49115795]
[1741654770044,73.43429235,115.01,114.9,73.43429235]
[1741654770250,365.21689235,115.05,114.94,73.43429235]
[1741654770448,365.21689235,115.05,114.92,73.43429235]
[1741654770750,291.7826,115.05,114.96,73.43429235]
[1741654770952,77.68649235,115.09,114.97,0.06583087]
[1741654771247,4.2522,115.09,115.0,73.43429235]
[1741654771652,360.83429235,115.11,115.0,73.43429235]
[1741654771842,8.5868,115.18,114.94,671.4]
[1741654771843,73.43429235,115.16,115.04,73.43429235]
[1741654772043,365.05049235,115.17,115.06,73.43429235]
[1741654772245,0.06005928,115.11,115.09,0.05769673]
[1741654772451,73.43429235,115.21,115.1,73.43429235]
[1741654772850,4.1785,115.22,115.12,73.43429235]
[1741654773443,73.43429235,115.21,115.1,73.43429235]
[1741654773648,73.43429235,115.17,115.06,73.43429235]
[1741654773844,73.43429235,115.15,115.02,73.43429235]
[1741654774152,73.43429235,115.13,115.02,73.43429235]
[1741654774351,73.43429235,115.11,115.01,4.3893]
[1741654774555,73.43429235,115.09,114.98,73.43429235]
[1741654774859,4.1785,115.14,114.98,73.43429235]
[1741654775156,73.43429235,115.11,114.98,73.43429235]
[1741654775758,73.43429235,115.09,114.98,73.43429235]
[1741654776154,73.43429235,115.11,114.98,73.43429235]
[1741654776355,73.43429235,115.07,114.96,170.88364965]
[1741654776554,73.43429235,115.07,114.96,4.3893]
[1741654776754,73.43429235,115.05,114.96,4.3893]
[1741654776959,4.3459,115.06,114.96,4.3893]
[1741654777254,231.79760785,115.45,115.06,193.0]
[1741654777454,25.70384985,115.67,115.43,26.37]
[1741654777661,86.8,115.65,115.44,287.02]
[1741654777849,86.8,115.65,115.44,774.4214]
[1741654778054,86.8,115.64,115.45,124.0]
[1741654778251,86.8,115.65,115.63,73.43429235]
[1741654778458,287.02,115.77,115.64,73.43429235]
[1741654778658,0.66540852,115.8,115.6,73.43429235]
[1741654778659,0.66540852,115.8,115.68,73.43429235]
[1741654778961,0.06094392,115.72,115.68,73.43429235]
[1741654779162,86.8,115.69,115.65,73.43429235]
[1741654779362,86.8,115.66,115.65,73.43429235]
[1741654779564,86.8,115.69,115.65,73.43429235]
[1741654779760,86.8,115.67,115.66,73.43429235]
[1741654780058,287.08094392,115.72,115.66,81.74512162]
[1741654780262,287.08094392,115.72,115.65,72.73174143]
[1741654780460,287.08094392,115.72,115.62,72.73174143]
[1741654780763,287.02,115.72,115.67,0.05958971]
[1741654781166,0.06014967,115.68,115.61,72.73174143]
[1741654781359,286.5,115.77,115.66,272.9325123]
[1741654781563,286.5,115.77,115.68,0.06181088]
[1741654781767,286.5,115.77,115.68,72.73174143]
[1741654781958,0.0657096,115.74,115.68,72.73174143]
[1741654782158,0.0657096,115.74,115.71,0.05807669]
[1741654783660,0.0657096,115.74,115.69,88.97583567]
[1741654783863,284.91603985,115.78,115.69,88.97583567]
[1741654784459,75.23434912,115.76,115.66,175.45661505]
[1741654784665,284.91603985,115.78,115.66,175.45661505]
[1741654784968,75.23434912,115.75,115.61,76.7179767]
[1741654785177,0.0648707,115.73,115.71,0.05987308]
[1741654785675,288.7,115.73,115.6,75.23434912]
[1741654785862,2.65580989,115.73,115.6,75.23434912]
[1741654786170,75.23434912,115.82,115.63,75.23434912]
[1741654786371,285.86,115.81,115.67,75.23434912]
[1741654786967,285.86,115.81,115.64,75.23434912]
[1741654787169,0.05689003,115.75,115.73,0.06648382]
[1741654787569,285.86,115.81,115.65,75.23434912]
[1741654787769,0.06193109,115.75,115.73,0.05621699]
[1741654788171,361.09434912,115.81,115.64,75.23434912]
[1741654788571,0.05787358,115.75,115.73,0.06317222]
[1741654788972,361.09434912,115.81,115.64,75.23434912]
[1741654789171,361.09434912,115.81,115.61,75.23434912]
[1741654789367,361.09434912,115.81,115.73,0.05585764]
[1741654789368,0.05815913,115.75,115.73,0.05585764]
[1741654789580,285.64,115.84,115.67,75.23434912]
[1741654789974,0.05680806,115.75,115.73,0.05880806]
[1741654790277,285.64,115.77,115.64,75.23434912]
[1741654790466,285.64,115.76,115.64,75.23434912]
[1741654790671,285.70203944,115.75,115.73,2.834e-05]
[1741654790977,285.64,115.81,115.64,75.23434912]
[1741654791276,285.64,115.81,115.67,75.23434912]
[1741654791873,0.06500879,115.75,115.73,0.05898993]
[1741654792370,285.64,115.81,115.64,367.23434912]
[1741654792567,0.05872391,115.75,115.73,0.05827878]
[1741654792969,285.64,115.81,115.65,75.23434912]
[1741654793169,285.64,115.81,115.68,75.23434912]
[1741654793367,0.06253778,115.75,115.73,0.05856305]
[1741654793774,285.64,115.81,115.66,75.23434912]
[1741654794282,0.05920082,115.75,115.73,0.06632747]
[1741654794777,285.64,115.81,115.66,75.23434912]
[1741654794977,0.0636647,115.75,115.73,0.05993797]
[1741654795377,285.64,115.81,115.66,75.23434912]
[1741654795775,0.05927763,115.75,115.73,0.05929086]
[1741654796175,2.6,115.75,115.63,75.23434912]
[1741654796371,285.4,115.74,115.63,75.23434912]
[1741654796882,285.4,115.79,115.66,75.23434912]
[1741654797375,4.4377,115.83,115.69,75.23434912]
[1741654797871,0.0607106,115.77,115.75,0.05925908]
[1741654798273,285.4,115.78,115.66,75.23434912]
[1741654798474,285.4,115.78,115.75,0.06595787]
[1741654798770,0.06099877,115.77,115.63,75.23434912]
[1741654798976,285.4,115.78,115.63,75.23434912]
[1741654799178,4.0413,115.77,115.63,75.23434912]
[1741654799775,4.0413,115.77,115.6,79.28224912]
[1741654800183,0.06452387,115.71,115.69,6.907e-05]
[1741654800383,285.32,115.7,115.69,6.907e-05]
[1741654800575,285.32,115.7,115.63,75.23434912]
[1741654800782,285.32,115.7,115.6,75.23434912]
[1741654800982,285.32,115.7,115.63,75.23434912]
[1741654801485,0.05825131,115.68,115.56,75.23434912]
[1741654801683,0.05825131,115.68,115.59,75.23434912]
[1741654801883,285.32,115.7,115.59,75.23434912]
[1741654802084,285.32,115.7,115.56,75.23434912]
[1741654802378,285.32,115.7,115.64,72.76734653]
[1741654802587,285.32,115.7,115.61,72.76734653]
[1741654802887,0.06397119,115.68,115.66,0.06422738]
[1741654803290,285.36,115.75,115.53,483.0]
[1741654803499,0.06577813,115.68,115.66,0.05802322]
[1741654803989,72.76734653,115.73,115.62,72.76734653]
[1741654804193,285.36,115.75,115.53,483.0]
[1741654804194,0.066262,115.68,115.66,0.06313175]
[1741654804395,285.426262,115.68,115.66,3.175e-05]
[1741654804597,287.96,115.68,115.58,72.76734653]
[1741654804883,285.34,115.67,115.58,72.76734653]
[1741654805789,0.06510752,115.64,115.61,0.05519792]
[1741654806092,0.06510752,115.64,115.62,72.76734653]
[1741654806292,2.66510752,115.64,115.62,72.76734653]
[1741654806487,285.34,115.67,115.62,72.76734653]
[1741654806786,287.94,115.67,115.61,0.05519792]
[1741654806979,285.34,115.67,115.62,72.76734653]
[1741654807293,285.34,115.67,115.53,483.0]
[1741654807294,285.34,115.67,115.58,72.76734653]
[1741654807783,0.05616865,115.64,115.61,0.06516178]
[1741654808486,0.05616865,115.64,115.62,72.76734653]
[1741654808688,285.34,115.67,115.62,72.76734653]
[1741654808885,289.4618,115.72,115.64,72.76734653]
[1741654809290,285.4,115.72,115.66,72.76734653]
[1741654809481,285.4,115.72,115.64,72.76734653]
[1741654809788,285.4,115.72,115.63,72.76734653]
[1741654810087,0.054924,115.69,115.67,0.0602462]
[1741654810585,2.654924,115.69,115.67,4.62e-05]
[1741654810785,0.054924,115.69,115.67,4.62e-05]
[1741654812696,2.654924,115.69,115.67,4.62e-05]
[1741654813187,285.434924,115.69,115.67,4.62e-05]
[1741654813494,285.38,115.68,115.59,72.76734653]
[1741654813690,285.38,115.68,115.52,483.0]
[1741654813893,285.38,115.68,115.59,72.76734653]
[1741654814694,0.06452231,115.65,115.62,0.05974599]
[1741654814890,72.76734653,115.64,115.52,191.0]
[1741654815088,72.76734653,115.54,115.4,191.0]
[1741654815289,72.76734653,115.47,115.37,4.2248]
[1741654815595,285.38,115.47,115.37,25.44570129]
[1741654815887,72.76734653,115.63,115.45,72.76734653]
[1741654816091,72.76734653,115.7,115.57,72.76734653]
[1741654816286,72.76734653,115.68,115.55,72.76734653]
[1741654816485,72.76734653,115.7,115.59,72.76734653]
[1741654816693,0.00569712,115.63,115.61,72.76734653]
[1741654816893,72.76734653,115.7,115.59,72.76734653]
[1741654817091,4.4393,115.71,115.57,72.76734653]
[1741654817288,72.76734653,115.7,115.59,72.76734653]
[1741654817487,72.76734653,115.68,115.55,72.76734653]
[1741654817686,72.76734653,115.68,115.5,566.03654924]
[1741654817687,72.76734653,115.62,115.56,8.19627302]
[1741654817884,72.76734653,115.7,115.47,72.76734653]
[1741654817885,72.76734653,115.6,115.47,72.76734653]
[1741654818195,285.56,115.6,115.53,72.76734653]
[1741654818396,285.56,115.6,115.54,8.19881845]
[1741654818593,1.50590679,115.73,115.59,72.76734653]
[1741654818890,83.53739856,115.78,115.66,72.76734653]
[1741654819198,72.76734653,115.78,115.66,72.76734653]
[1741654819789,72.76734653,115.78,115.67,7.97958466]
[1741654819990,0.06408398,115.73,115.71,5.733e-05]
[1741654820283,0.06408398,115.73,115.64,72.76734653]
[1741654820284,285.48,115.72,115.64,72.76734653]
[1741654820485,285.48,115.72,115.65,20.8949981]